[Event "Rapid Tournament (RAP)"]
[Site "Biel, Switzerland"]
[Date "2026.07.12"]
[Round "8.51"]
[White "Chu, Wa Ching David"]
[Black "Duric, Ivan"]
[Result "0-1"]
[TimeControl "15 + 5"]
[WhiteTitle "-"]
[BlackTitle "-"]
[WhiteFideId "6013180"]
[BlackFideId "1358138"]
[WhiteElo "1723"]
[BlackElo "1832"]

1. d4 {[%clk 00:15:07]} {[%emt 00:00:02]} Nf6 {[%clk 00:15:09]} {[%emt
00:00:03]} 2. Bg5 {[%clk 00:15:10]} Ne4 {[%clk 00:15:08]} {[%emt 00:00:06]} 3.
Bh4 {[%clk 00:15:09]} {[%emt 00:00:03]} g5 {[%clk 00:15:12]} {[%emt 00:00:04]}
4. f3 {[%clk 00:15:13]} {[%emt 00:00:01]} gxh4 {[%clk 00:15:12]} {[%emt
00:00:05]} 5. fxe4 {[%clk 00:15:16]} {[%emt 00:00:01]} Bg7 {[%clk 00:14:22]}
{[%emt 00:00:55]} 6. e3 {[%clk 00:15:18]} {[%emt 00:00:03]} d6 {[%clk
00:14:16]} {[%emt 00:00:12]} 7. Nf3 {[%clk 00:15:07]} {[%emt 00:00:16]} Bg4
{[%clk 00:14:04]} {[%emt 00:00:17]} 8. Bc4 {[%clk 00:14:55]} {[%emt 00:00:17]}
O-O {[%clk 00:13:59]} {[%emt 00:00:10]} 9. O-O {[%clk 00:14:43]} {[%emt
00:00:16]} Nd7 {[%clk 00:14:02]} {[%emt 00:00:03]} 10. Qe1 {[%clk 00:14:17]}
{[%emt 00:00:31]} c6 {[%clk 00:13:45]} {[%emt 00:00:22]} 11. Qxh4 {[%clk
00:14:02]} {[%emt 00:00:19]} Bxf3 {[%clk 00:13:41]} {[%emt 00:00:09]} 12. Rxf3
{[%clk 00:14:05]} {[%emt 00:00:02]} b5 {[%clk 00:13:06]} {[%emt 00:00:41]} 13.
Bd3 {[%clk 00:14:06]} {[%emt 00:00:04]} e5 {[%clk 00:12:44]} {[%emt 00:00:27]}
14. c3 {[%clk 00:13:32]} {[%emt 00:00:37]} Qxh4 {[%clk 00:12:45]} {[%emt
00:00:06]} 15. Nd2 {[%clk 00:13:30]} {[%emt 00:00:07]} a5 {[%clk 00:12:16]}
{[%emt 00:00:34]} 16. Raf1 {[%clk 00:13:28]} {[%emt 00:00:06]} Qe7 {[%clk
00:09:48]} {[%emt 00:02:33]} 17. Rh3 {[%clk 00:12:48]} {[%emt 00:00:44]} Nf6
{[%clk 00:09:21]} {[%emt 00:00:33]} 18. Nf3 {[%clk 00:11:42]} {[%emt 00:01:10]}
Ng4 {[%clk 00:09:13]} {[%emt 00:00:15]} 19. Nh4 {[%clk 00:11:16]} {[%emt
00:00:30]} Nxe3 {[%clk 00:08:54]} {[%emt 00:00:25]} 20. Rff3 {[%clk 00:11:01]}
{[%emt 00:00:20]} Bf6 {[%clk 00:08:35]} {[%emt 00:00:23]} 21. Nf5 {[%clk
00:10:09]} {[%emt 00:00:58]} Nxf5 {[%clk 00:08:36]} {[%emt 00:00:04]} 22. Rxf5
{[%clk 00:10:12]} {[%emt 00:00:02]} Bg5 {[%clk 00:07:34]} {[%emt 00:01:06]} 23.
Rg3 {[%clk 00:10:02]} {[%emt 00:00:15]} f6 {[%clk 00:07:36]} {[%emt 00:00:03]}
24. h4 {[%clk 00:10:00]} {[%emt 00:00:07]} Rf7 {[%clk 00:07:22]} {[%emt
00:00:18]} 25. hxg5 {[%clk 00:09:58]} {[%emt 00:00:08]} fxg5 {[%clk 00:07:25]}
{[%emt 00:00:03]} 26. Rfxg5+ {[%clk 00:09:51]} {[%emt 00:00:10]} Rg7 {[%clk
00:07:27]} {[%emt 00:00:04]} 27. Rxg7+ {[%clk 00:09:51]} {[%emt 00:00:06]} Qxg7
{[%clk 00:07:30]} {[%emt 00:00:02]} 28. Rxg7+ {[%clk 00:09:52]} {[%emt
00:00:03]} Kxg7 {[%clk 00:07:34]} {[%emt 00:00:02]} 29. Kf2 {[%clk 00:09:43]}
{[%emt 00:00:13]} Rf8+ {[%clk 00:07:30]} {[%emt 00:00:10]} 30. Kg3 {[%clk
00:09:34]} {[%emt 00:00:14]} Kf6 {[%clk 00:06:41]} {[%emt 00:00:54]} 31. Be2
{[%clk 00:09:13]} {[%emt 00:00:25]} Kg5 {[%clk 00:06:27]} {[%emt 00:00:20]} 32.
Bf3 {[%clk 00:08:49]} {[%emt 00:00:28]} h5 {[%clk 00:05:39]} {[%emt 00:00:53]}
33. Kf2 {[%clk 00:08:27]} {[%emt 00:00:27]} h4 {[%clk 00:05:16]} {[%emt
00:00:29]} 34. Ke3 {[%clk 00:08:22]} {[%emt 00:00:09]} c5 {[%clk 00:02:53]}
{[%emt 00:02:29]} 35. d5 {[%clk 00:08:04]} {[%emt 00:00:22]} b4 {[%clk
00:02:12]} {[%emt 00:00:47]} 36. c4 {[%clk 00:08:03]} {[%emt 00:00:05]} a4
{[%clk 00:02:10]} {[%emt 00:00:07]} 37. Be2 {[%clk 00:07:50]} {[%emt 00:00:18]}
Rf6 {[%clk 00:01:28]} {[%emt 00:00:48]} 38. Bf3 {[%clk 00:07:07]} {[%emt
00:00:47]} Rh6 {[%clk 00:01:22]} {[%emt 00:00:12]} 39. Kf2 {[%clk 00:06:32]}
{[%emt 00:00:40]} Kf4 {[%clk 00:01:24]} {[%emt 00:00:02]} 40. Ke2 {[%clk
00:06:07]} {[%emt 00:00:31]} Kg3 {[%clk 00:01:25]} {[%emt 00:00:04]} 41. Ke3
{[%clk 00:05:58]} {[%emt 00:00:14]} Rf6 {[%clk 00:01:14]} {[%emt 00:00:16]} 42.
b3 {[%clk 00:05:23]} {[%emt 00:00:40]} a3 {[%clk 00:01:09]} {[%emt 00:00:10]}
43. Ke2 {[%clk 00:05:07]} {[%emt 00:00:21]} Rxf3 {[%clk 00:00:42]} {[%emt
00:00:31]} 44. gxf3 {[%clk 00:05:10]} {[%emt 00:00:02]} Kg2 {[%clk 00:00:46]}
{[%emt 00:00:02]} 45. f4 {[%clk 00:05:01]} {[%emt 00:00:14]} h3 {[%clk
00:00:49]} {[%emt 00:00:02]} 46. fxe5 {[%clk 00:04:40]} {[%emt 00:00:25]} h2
{[%clk 00:00:48]} {[%emt 00:00:06]} 47. exd6 {[%clk 00:04:41]} {[%emt
00:00:05]} h1=Q {[%clk 00:00:50]} {[%emt 00:00:03]} 48. Ke3 {[%clk 00:04:05]}
{[%emt 00:00:41]} Qh6+ {[%clk 00:00:46]} {[%emt 00:00:08]} 49. Kd3 {[%clk
00:04:04]} {[%emt 00:00:07]} Qxd6 {[%clk 00:00:48]} {[%emt 00:00:03]} 50. Ke3
{[%clk 00:04:05]} {[%emt 00:00:04]} Qe5 {[%clk 00:00:41]} {[%emt 00:00:12]} 51.
Kd3 {[%clk 00:04:07]} {[%emt 00:00:02]} Qd4+ {[%clk 00:00:44]} {[%emt
00:00:03]} 52. Kc2 {[%clk 00:04:03]} {[%emt 00:00:09]} Qxe4+ {[%clk 00:00:41]}
{[%emt 00:00:08]} 53. Kc1 {[%clk 00:04:06]} {[%emt 00:00:02]} Qd4 {[%clk
00:00:25]} {[%emt 00:00:20]} 54. d6 {[%clk 00:04:07]} {[%emt 00:00:05]} Qxd6
{[%clk 00:00:28]} {[%emt 00:00:02]} 55. Kc2 {[%clk 00:04:10]} {[%emt 00:00:01]}
Qd4 {[%clk 00:00:29]} {[%emt 00:00:05]} 56. Kc1 {[%clk 00:04:10]} {[%emt
00:00:03]} Qc3+ {[%clk 00:00:22]} {[%emt 00:00:13]} 57. Kd1 {[%clk 00:04:12]}
{[%emt 00:00:03]} Qa1+ {[%clk 00:00:21]} {[%emt 00:00:07]} 58. Kd2 {[%clk
00:04:08]} {[%emt 00:00:05]} Qxa2+ {[%clk 00:00:23]} {[%emt 00:00:06]} 59. Kc1
{[%clk 00:04:10]} {[%emt 00:00:03]} Qb2+ {[%clk 00:00:23]} {[%emt 00:00:06]} 60.
Kd1 {[%clk 00:04:12]} {[%emt 00:00:02]} a2 {[%clk 00:00:25]} {[%emt 00:00:03]}
61. Ke1 {[%clk 00:04:15]} {[%emt 00:00:02]} a1=R# {[%clk 00:00:26]} {[%emt
00:00:05]} 0-1

[Event "Rapid Tournament (RAP)"]
[Site "Biel, Switzerland"]
[Date "2026.07.12"]
[Round "8.52"]
[White "Huettinger, Jonathan"]
[Black "Di Meo, Quentin"]
[Result "0-1"]
[TimeControl "15 + 5"]
[WhiteTitle "-"]
[BlackTitle "-"]
[WhiteFideId "1366750"]
[BlackFideId "1338498"]
[WhiteElo "1704"]
[BlackElo "1828"]

1. d4 {[%clk 00:15:07]} {[%emt 00:00:02]} d6 {[%clk 00:15:08]} {[%emt
00:00:04]} 2. c4 {[%clk 00:15:02]} {[%emt 00:00:10]} Nf6 {[%clk 00:15:09]}
{[%emt 00:00:03]} 3. Nf3 {[%clk 00:15:02]} {[%emt 00:00:06]} Nbd7 {[%clk
00:15:10]} {[%emt 00:00:03]} 4. Nc3 {[%clk 00:15:03]} {[%emt 00:00:04]} e5
{[%clk 00:15:09]} {[%emt 00:00:06]} 5. e4 {[%clk 00:14:31]} {[%emt 00:00:37]}
Be7 {[%clk 00:15:04]} {[%emt 00:00:10]} 6. Be2 {[%clk 00:14:21]} {[%emt
00:00:14]} c6 {[%clk 00:15:02]} {[%emt 00:00:08]} 7. O-O {[%clk 00:14:16]}
{[%emt 00:00:10]} O-O {[%clk 00:14:50]} {[%emt 00:00:17]} 8. b3 {[%clk
00:14:12]} {[%emt 00:00:08]} Qc7 {[%clk 00:14:40]} {[%emt 00:00:15]} 9. Bb2
{[%clk 00:14:09]} {[%emt 00:00:08]} a5 {[%clk 00:14:32]} {[%emt 00:00:14]} 10.
Qc2 {[%clk 00:13:30]} {[%emt 00:00:44]} Re8 {[%clk 00:14:00]} {[%emt 00:00:37]}
11. Rac1 {[%clk 00:13:10]} {[%emt 00:00:24]} exd4 {[%clk 00:13:28]} {[%emt
00:00:38]} 12. Nxd4 {[%clk 00:13:10]} {[%emt 00:00:05]} Nc5 {[%clk 00:13:05]}
{[%emt 00:00:28]} 13. Rfe1 {[%clk 00:12:37]} {[%emt 00:00:38]} Bf8 {[%clk
00:11:44]} {[%emt 00:01:27]} 14. Bd3 {[%clk 00:12:30]} {[%emt 00:00:10]} Nxd3
{[%clk 00:11:02]} {[%emt 00:00:48]} 15. Qxd3 {[%clk 00:12:31]} {[%emt
00:00:04]} Ng4 {[%clk 00:09:44]} {[%emt 00:01:23]} 16. Qg3 {[%clk 00:11:50]}
{[%emt 00:00:45]} Ne5 {[%clk 00:09:05]} {[%emt 00:00:45]} 17. Nf5 {[%clk
00:11:37]} {[%emt 00:00:18]} Bxf5 {[%clk 00:08:39]} {[%emt 00:00:31]} 18. exf5
{[%clk 00:11:38]} {[%emt 00:00:04]} f6 {[%clk 00:08:19]} {[%emt 00:00:25]} 19.
Ne4 {[%clk 00:11:37]} {[%emt 00:00:06]} Qf7 {[%clk 00:07:29]} {[%emt 00:00:56]}
20. Rcd1 {[%clk 00:11:20]} {[%emt 00:00:21]} a4 {[%clk 00:06:31]} {[%emt
00:01:03]} 21. f4 {[%clk 00:07:30]} {[%emt 00:03:55]} Nd7 {[%clk 00:04:36]}
{[%emt 00:02:00]} 22. Rd3 {[%clk 00:04:11]} {[%emt 00:03:24]} d5 {[%clk
00:03:01]} {[%emt 00:01:40]} 23. cxd5 {[%clk 00:03:03]} {[%emt 00:01:13]} cxd5
{[%clk 00:03:03]} {[%emt 00:00:03]} 24. Nd2 {[%clk 00:01:29]} {[%emt 00:01:40]}
Nc5 {[%clk 00:02:37]} {[%emt 00:00:31]} 25. Rxe8 {[%clk 00:01:13]} {[%emt
00:00:20]} Rxe8 {[%clk 00:02:24]} {[%emt 00:00:18]} 26. Rf3 {[%clk 00:01:04]}
{[%emt 00:00:14]} axb3 {[%clk 00:01:48]} {[%emt 00:00:41]} 27. axb3 {[%clk
00:00:55]} {[%emt 00:00:14]} Ne4 {[%clk 00:01:24]} {[%emt 00:00:29]} 28. Nxe4
{[%clk 00:00:45]} {[%emt 00:00:16]} dxe4 {[%clk 00:01:27]} {[%emt 00:00:02]} 29.
Re3 {[%clk 00:00:42]} {[%emt 00:00:08]} Bc5 {[%clk 00:01:29]} {[%emt 00:00:03]}
30. h3 {[%clk 00:00:29]} {[%emt 00:00:18]} Qxb3 {[%clk 00:01:21]} {[%emt
00:00:12]} 31. Bc1 {[%clk 00:00:16]} {[%emt 00:00:19]} Rd8 {[%clk 00:01:20]}
{[%emt 00:00:06]} 32. Kh2 {[%clk 00:00:12]} {[%emt 00:00:08]} Bxe3 {[%clk
00:01:16]} {[%emt 00:00:09]} 33. Qxe3 {[%clk 00:00:08]} {[%emt 00:00:09]} Qxe3
{[%clk 00:01:15]} {[%emt 00:00:06]} 34. Bxe3 {[%clk 00:00:11]} {[%emt
00:00:02]} b5 {[%clk 00:01:10]} {[%emt 00:00:10]} 35. Bb6 {[%clk 00:00:12]}
{[%emt 00:00:04]} Rd3 {[%clk 00:01:02]} {[%emt 00:00:14]} 36. Bc5 {[%clk
00:00:09]} {[%emt 00:00:07]} Rd5 {[%clk 00:01:00]} {[%emt 00:00:07]} 37. Bb4
{[%clk 00:00:07]} {[%emt 00:00:07]} Rxf5 {[%clk 00:01:02]} {[%emt 00:00:03]} 38.
Kg3 {[%clk 00:00:10]} {[%emt 00:00:03]} Rd5 {[%clk 00:01:03]} {[%emt 00:00:03]}
39. Kf2 {[%clk 00:00:10]} {[%emt 00:00:06]} Rd3 {[%clk 00:01:03]} {[%emt
00:00:05]} 40. Bc5 {[%clk 00:00:11]} {[%emt 00:00:04]} Kf7 {[%clk 00:01:03]}
{[%emt 00:00:04]} 41. h4 {[%clk 00:00:10]} {[%emt 00:00:06]} h5 {[%clk
00:01:03]} {[%emt 00:00:05]} 42. g3 {[%clk 00:00:10]} {[%emt 00:00:05]} Ke6
{[%clk 00:01:05]} {[%emt 00:00:02]} 43. Bb4 {[%clk 00:00:09]} {[%emt 00:00:08]}
f5 {[%clk 00:01:06]} {[%emt 00:00:03]} 44. Bc5 {[%clk 00:00:09]} {[%emt
00:00:05]} Kd5 {[%clk 00:01:08]} {[%emt 00:00:03]} 45. Bb4 {[%clk 00:00:12]}
{[%emt 00:00:02]} Kc4 {[%clk 00:01:09]} {[%emt 00:00:04]} 46. Bf8 {[%clk
00:00:14]} {[%emt 00:00:03]} g6 {[%clk 00:01:11]} {[%emt 00:00:03]} 47. Kg2
{[%clk 00:00:15]} {[%emt 00:00:04]} b4 {[%clk 00:01:12]} {[%emt 00:00:05]} 48.
Kh3 {[%clk 00:00:10]} {[%emt 00:00:09]} b3 {[%clk 00:01:13]} {[%emt 00:00:04]}
49. Bg7 {[%clk 00:00:12]} {[%emt 00:00:03]} e3 {[%clk 00:00:53]} {[%emt
00:00:25]} 50. Bf8 {[%clk 00:00:09]} {[%emt 00:00:08]} b2 {[%clk 00:00:54]}
{[%emt 00:00:04]} 51. Ba3 {[%clk 00:00:10]} {[%emt 00:00:04]} Rxa3 {[%clk
00:00:54]} {[%emt 00:00:05]} 52. Kg2 {[%clk 00:00:07]} {[%emt 00:00:08]} e2
{[%clk 00:00:46]} {[%emt 00:00:13]} 53. Kf2 {[%clk 00:00:09]} {[%emt 00:00:04]}
b1=Q {[%clk 00:00:46]} {[%emt 00:00:04]} 54. Kg2 {[%clk 00:00:00]} {[%emt
00:00:09]} 0-1

[Event "Rapid Tournament (RAP)"]
[Site "Biel, Switzerland"]
[Date "2026.07.12"]
[Round "8.53"]
[White "Jaggy, Enzo"]
[Black "Klopfenstein, Francois"]
[Result "1/2-1/2"]
[TimeControl "15 + 5"]
[WhiteTitle "-"]
[BlackTitle "-"]
[WhiteFideId "1344919"]
[BlackFideId "1303040"]
[WhiteElo "1682"]
[BlackElo "1815"]

1. d4 {[%clk 00:15:06]} e6 {[%clk 00:15:06]} 2. Nf3 {[%clk 00:15:06]} Nf6 3. e3
{[%clk 00:15:06]} b6 {[%clk 00:15:11]} {[%emt 03:27:11]} 4. Bd3 {[%clk
00:15:16]} Bb7 {[%clk 00:15:12]} {[%emt 00:00:08]} 5. Nbd2 {[%clk 00:15:19]} d5
{[%clk 00:15:13]} {[%emt 00:00:06]} 6. O-O {[%clk 00:15:20]} Be7 {[%clk
00:15:07]} {[%emt 00:00:15]} 7. Re1 {[%clk 00:15:22]} Nbd7 {[%clk 00:15:03]}
{[%emt 00:00:13]} 8. e4 {[%clk 00:15:16]} dxe4 {[%clk 00:14:30]} {[%emt
00:00:48]} 9. Nxe4 {[%clk 00:15:20]} O-O {[%clk 00:14:05]} {[%emt 00:00:30]} 10.
c3 {[%clk 00:15:04]} c5 {[%clk 00:13:36]} {[%emt 00:00:56]} 11. dxc5 {[%clk
00:13:54]} Nxc5 {[%clk 00:11:34]} {[%emt 00:03:22]} 12. Nxc5 {[%clk 00:12:00]}
Bxc5 {[%clk 00:11:37]} {[%emt 00:02:00]} 13. Bg5 {[%clk 00:11:34]} h6 {[%clk
00:06:22]} {[%emt 00:05:52]} 14. Bf4 {[%clk 00:11:23]} Nd5 {[%clk 00:04:24]}
{[%emt 00:02:19]} 15. Be5 {[%clk 00:10:29]} Bd6 {[%clk 00:04:16]} {[%emt
00:01:08]} 1/2-1/2

[Event "Rapid Tournament (RAP)"]
[Site "Biel, Switzerland"]
[Date "2026.07.12"]
[Round "8.54"]
[White "Koehler, Noe"]
[Black "Knuesel, Jolan"]
[Result "0-1"]
[TimeControl "15 + 5"]
[WhiteTitle "-"]
[BlackTitle "-"]
[WhiteFideId "1362488"]
[BlackFideId "1364529"]
[WhiteElo "1814"]
[BlackElo "1651"]

1. e4 {[%clk 00:15:09]} {[%emt 00:01:59]} c6 {[%clk 00:15:08]} {[%emt
00:00:03]} 2. d4 {[%clk 00:15:13]} {[%emt 00:00:01]} d5 {[%clk 00:15:11]}
{[%emt 00:00:03]} 3. Nc3 {[%clk 00:15:17]} dxe4 {[%clk 00:15:11]} {[%emt
00:00:05]} 4. Nxe4 {[%clk 00:15:21]} Nf6 {[%clk 00:15:15]} {[%emt 00:00:02]} 5.
Nxf6+ {[%clk 00:15:25]} {[%emt 00:00:01]} exf6 {[%clk 00:15:18]} 6. c3 {[%clk
00:15:30]} {[%emt 00:00:01]} g6 {[%clk 00:14:52]} {[%emt 00:00:31]} 7. Bd3
{[%clk 00:15:30]} {[%emt 00:00:05]} Bg7 {[%clk 00:14:53]} {[%emt 00:00:03]} 8.
Qc2 {[%clk 00:15:31]} {[%emt 00:00:04]} O-O {[%clk 00:14:29]} {[%emt 00:00:29]}
9. Be3 {[%clk 00:15:33]} {[%emt 00:00:03]} Re8 {[%clk 00:14:18]} {[%emt
00:00:16]} 10. Ne2 {[%clk 00:15:37]} {[%emt 00:00:02]} Nd7 {[%clk 00:13:48]}
{[%emt 00:00:35]} 11. O-O-O {[%clk 00:15:38]} {[%emt 00:00:03]} Nb6 {[%clk
00:13:25]} {[%emt 00:00:28]} 12. h4 {[%clk 00:15:42]} {[%emt 00:00:02]} Bg4
{[%clk 00:12:26]} {[%emt 00:01:03]} 13. Bf4 {[%clk 00:14:20]} {[%emt 00:01:27]}
Bxe2 {[%clk 00:12:00]} {[%emt 00:00:31]} 14. Bxe2 {[%clk 00:14:23]} {[%emt
00:00:02]} Qd5 {[%clk 00:11:42]} {[%emt 00:00:23]} 15. Kb1 {[%clk 00:12:24]}
{[%emt 00:02:05]} Qxg2 {[%clk 00:11:25]} {[%emt 00:00:20]} 16. Bd3 {[%clk
00:10:43]} {[%emt 00:01:47]} Qf3 {[%clk 00:10:15]} {[%emt 00:01:15]} 17. Bg3
{[%clk 00:10:06]} {[%emt 00:00:43]} Nd5 {[%clk 00:09:29]} {[%emt 00:00:49]} 18.
h5 {[%clk 00:09:33]} {[%emt 00:00:40]} Nf4 {[%clk 00:08:57]} {[%emt 00:00:36]}
19. Bxf4 {[%clk 00:09:19]} {[%emt 00:00:19]} Qxf4 {[%clk 00:08:59]} {[%emt
00:00:03]} 20. hxg6 {[%clk 00:09:23]} {[%emt 00:00:02]} fxg6 {[%clk 00:08:14]}
{[%emt 00:00:50]} 21. Rdg1 {[%clk 00:07:07]} {[%emt 00:02:21]} f5 {[%clk
00:06:53]} {[%emt 00:01:25]} 22. Qb3+ {[%clk 00:05:54]} {[%emt 00:01:18]} Kf8
{[%clk 00:05:36]} {[%emt 00:01:22]} 23. Qb4+ {[%clk 00:04:37]} {[%emt
00:01:22]} Re7 {[%clk 00:04:11]} {[%emt 00:01:31]} 24. Re1 {[%clk 00:04:38]}
{[%emt 00:00:03]} Rae8 {[%clk 00:04:15]} {[%emt 00:00:02]} 25. Rxh7 {[%clk
00:03:16]} {[%emt 00:01:27]} Qd2 {[%clk 00:03:21]} {[%emt 00:00:59]} 26. Reh1
{[%clk 00:00:57]} {[%emt 00:02:24]} Qxd3+ {[%clk 00:03:21]} {[%emt 00:00:04]}
27. Kc1 {[%clk 00:00:55]} {[%emt 00:00:08]} Kf7 {[%clk 00:02:15]} {[%emt
00:01:10]} 28. Qb3+ {[%clk 00:00:33]} {[%emt 00:00:27]} Kf6 {[%clk 00:02:17]}
{[%emt 00:00:03]} 29. Rd1 {[%clk 00:00:08]} {[%emt 00:00:30]} Qe2 {[%clk
00:02:01]} {[%emt 00:00:22]} 30. Rhh1 {[%clk 00:00:10]} {[%emt 00:00:02]} Qxf2
{[%clk 00:01:54]} {[%emt 00:00:12]} 31. Qb4 {[%clk 00:00:08]} {[%emt 00:00:08]}
Qe3+ {[%clk 00:01:07]} {[%emt 00:00:52]} 32. Kc2 {[%clk 00:00:07]} {[%emt
00:00:06]} Qe4+ {[%clk 00:01:06]} {[%emt 00:00:05]} 33. Kc1 {[%clk 00:00:08]}
{[%emt 00:00:05]} Qf4+ {[%clk 00:01:00]} {[%emt 00:00:10]} 34. Kc2 {[%clk
00:00:12]} {[%emt 00:00:02]} Re2+ {[%clk 00:00:53]} {[%emt 00:00:12]} 35. Kb3
{[%clk 00:00:15]} {[%emt 00:00:02]} Qf2 {[%clk 00:00:33]} {[%emt 00:00:24]} 36.
Qd6+ {[%clk 00:00:06]} {[%emt 00:00:14]} R8e6 {[%clk 00:00:33]} {[%emt
00:00:05]} 37. Qd8+ {[%clk 00:00:11]} {[%emt 00:00:01]} Kf7 {[%clk 00:00:31]}
{[%emt 00:00:07]} 38. Qd7+ {[%clk 00:00:15]} {[%emt 00:00:01]} Re7 {[%clk
00:00:33]} {[%emt 00:00:02]} 39. Qd8 {[%clk 00:00:00]} {[%emt 00:00:15]} 0-1

[Event "Rapid Tournament (RAP)"]
[Site "Biel, Switzerland"]
[Date "2026.07.12"]
[Round "9.2"]
[White "Bu, Xiangzhi"]
[Black "Ghosh, Diptayan"]
[Result "1-0"]
[TimeControl "15 + 5"]
[WhiteTitle "-"]
[BlackTitle "-"]
[WhiteFideId "8601445"]
[BlackFideId "5045207"]
[WhiteElo "2583"]
[BlackElo "2480"]

1. Nf3 {[%emt 00:00:03]} d5 {[%clk 00:15:09]} 2. d4 {[%clk 00:15:12]} Nf6
{[%clk 00:15:13]} {[%emt 00:00:02]} 3. c4 {[%clk 00:15:16]} e6 {[%clk
00:15:16]} 4. Nc3 {[%clk 00:15:20]} {[%emt 00:00:03]} Nbd7 {[%clk 00:15:20]} 5.
cxd5 {[%clk 00:15:20]} {[%emt 00:00:06]} exd5 {[%clk 00:15:23]} 6. Bg5 {[%clk
00:15:17]} {[%emt 00:00:07]} Be7 {[%clk 00:15:26]} {[%emt 00:00:02]} 7. e3
{[%clk 00:15:20]} {[%emt 00:00:02]} h6 {[%clk 00:15:29]} {[%emt 00:00:02]} 8.
Bh4 {[%clk 00:15:21]} {[%emt 00:00:04]} c6 {[%clk 00:15:28]} {[%emt 00:00:06]}
9. Bd3 {[%clk 00:15:23]} {[%emt 00:00:03]} O-O {[%clk 00:15:31]} {[%emt
00:00:02]} 10. Qc2 {[%clk 00:15:21]} {[%emt 00:00:07]} Re8 {[%clk 00:15:35]}
{[%emt 00:00:02]} 11. O-O {[%clk 00:15:09]} {[%emt 00:00:17]} Ne4 {[%clk
00:15:38]} {[%emt 00:00:02]} 12. Bxe4 {[%clk 00:15:11]} {[%emt 00:00:03]} Bxh4
{[%clk 00:15:42]} {[%emt 00:00:01]} 13. Bh7+ {[%clk 00:15:15]} {[%emt
00:00:01]} Kh8 {[%clk 00:15:43]} {[%emt 00:00:05]} 14. Bf5 {[%clk 00:15:19]}
{[%emt 00:00:02]} Bf6 {[%clk 00:15:32]} {[%emt 00:00:16]} 15. b4 {[%clk
00:15:08]} {[%emt 00:00:15]} Nb6 {[%clk 00:15:30]} {[%emt 00:00:07]} 16. Bd3
{[%clk 00:15:04]} {[%emt 00:00:10]} Bg4 {[%clk 00:15:12]} {[%emt 00:00:23]} 17.
Nd2 {[%clk 00:15:08]} {[%emt 00:00:01]} Be7 {[%clk 00:15:07]} {[%emt 00:00:10]}
18. Rab1 {[%clk 00:14:50]} {[%emt 00:00:23]} Bd6 {[%clk 00:14:52]} {[%emt
00:00:20]} 19. h3 {[%clk 00:14:47]} {[%emt 00:00:08]} Be6 {[%clk 00:14:54]}
{[%emt 00:00:03]} 20. a4 {[%clk 00:14:36]} {[%emt 00:00:16]} Qh4 {[%clk
00:14:27]} {[%emt 00:00:32]} 21. Bf5 {[%clk 00:13:40]} {[%emt 00:01:01]} Rac8
{[%clk 00:13:34]} {[%emt 00:00:58]} 22. Bxe6 {[%clk 00:13:23]} {[%emt
00:00:22]} Rxe6 {[%clk 00:13:36]} {[%emt 00:00:03]} 23. a5 {[%clk 00:13:19]}
{[%emt 00:00:09]} Nd7 {[%clk 00:13:34]} {[%emt 00:00:08]} 24. Nxd5 {[%clk
00:12:33]} {[%emt 00:00:50]} Rce8 {[%clk 00:11:41]} {[%emt 00:01:57]} 25. Nc3
{[%clk 00:12:24]} {[%emt 00:00:15]} Rg6 {[%clk 00:09:32]} {[%emt 00:02:14]} 26.
Qf5 {[%clk 00:12:14]} {[%emt 00:00:14]} Rg5 {[%clk 00:07:41]} {[%emt 00:01:57]}
27. Qxd7 {[%clk 00:10:04]} {[%emt 00:02:16]} Rxe3 {[%clk 00:07:14]} {[%emt
00:00:32]} 28. Nce4 {[%clk 00:08:23]} {[%emt 00:01:45]} Rxe4 {[%clk 00:06:44]}
{[%emt 00:00:35]} 29. Qxd6 {[%clk 00:07:08]} {[%emt 00:01:20]} Rf4 {[%clk
00:06:12]} {[%emt 00:00:37]} 30. Rb3 {[%clk 00:06:25]} {[%emt 00:00:48]} Rg6
{[%clk 00:06:06]} {[%emt 00:00:11]} 31. Qb8+ {[%clk 00:05:39]} {[%emt
00:00:51]} Kh7 {[%clk 00:06:09]} {[%emt 00:00:02]} 32. Nf3 {[%clk 00:05:16]}
{[%emt 00:00:27]} Qf6 {[%clk 00:06:00]} {[%emt 00:00:14]} 33. Ne5 {[%clk
00:05:10]} {[%emt 00:00:11]} 1-0